bitfinex/quotes_ETHUSD_20250217
["timestamp","ask_amount","ask_price","bid_price","bid_amount"]
[1739804747954,0.429192,2836.4,2835.6,3.0]
[1739804748290,0.55,2836.1,2835.1,3.52717]
[1739804748479,0.55,2836.1,2835.8,3.52633]
[1739804748878,3.52598,2836.1,2835.7,3.0]
[1739804749069,0.55,2836.2,2835.7,3.0]
[1739804749273,0.55,2836.2,2835.4,3.0]
[1739804749452,3.52605,2836.1,2835.4,3.52683]
[1739804749656,0.7663,2836.6,2834.8,3.0]
[1739804749899,3.52547,2836.5,2835.8,3.5263]
[1739804750197,3.52575,2836.3,2835.8,3.5263]
[1739804750492,3.52575,2836.3,2835.8,3.52632]
[1739804750671,0.55,2836.2,2835.7,3.0]
[1739804750869,3.52682,2835.5,2834.9,4.35779]
[1739804751080,7.05309,2835.7,2835.1,3.52708]
[1739804751291,3.52653,2835.7,2835.2,3.52708]
[1739804751499,0.55,2835.7,2835.2,3.52708]
[1739804751796,0.55,2835.7,2834.9,0.8304]
[1739804751797,3.52643,2835.8,2835.3,3.52693]
[1739804751985,3.933445,2836.2,2834.9,0.8304]
[1739804752173,3.52592,2836.2,2835.6,3.52658]
[1739804752495,3.52579,2836.3,2834.9,0.8304]
[1739804752798,3.56993357,2836.2,2835.6,3.52647]
[1739804753000,3.52577,2836.3,2835.5,3.52663]
[1739804753157,3.52603,2836.1,2835.6,3.52649]
[1739804753694,0.352577,2836.2,2632.7,0.00505051]
[1739804753695,3.5269,2835.4,2834.7,3.52762]
[1739804753896,3.5269,2835.4,2834.7,3.52763]
[1739804754102,3.5275,2834.9,2834.4,0.7638]
[1739804754271,3.5275,2834.9,2834.0,0.6932207]
[1739804754272,7.05503,2834.9,2834.3,3.52813]
[1739804754480,3.52757,2834.9,2834.5,0.15202442]
[1739804754684,3.52757,2834.9,2834.3,7.05623]
[1739804754877,3.52757,2834.9,2834.6,0.15195618]
[1739804755085,0.352757,2834.9,2834.0,4.29238]
[1739804755266,4.07758,2834.8,2834.7,0.15196112]
[1739804755581,4.07758,2834.8,2834.1,3.52837]
[1739804755582,3.52786,2834.6,2834.2,3.0]
[1739804755796,3.52772,2834.7,2834.2,3.0]
[1739804755997,3.52721,2835.1,2834.5,3.52784]
[1739804756224,0.705436,2835.1,2834.5,3.52784]
[1739804756384,3.52694,2835.4,2834.6,0.15242288]
[1739804756592,3.5266,2835.6,2834.9,3.52733]
[1739804756827,3.5266,2835.6,2834.6,0.15242288]
[1739804756828,4.28915,2835.8,2835.0,0.15214995]
[1739804757013,4.28915,2835.8,2835.2,3.52701]
[1739804757324,4.28915,2835.8,2835.0,0.15214995]
[1739804757325,3.52647,2835.7,2835.3,0.1519453]
[1739804757528,0.7627,2835.8,2835.3,3.52685]
[1739804757746,3.52596,2836.1,2835.4,0.15173521]
[1739804758030,1.169777,2836.2,2835.4,0.15173521]
[1739804758194,0.04408881,2836.1,2835.4,0.15173521]
[1739804758394,0.55,2836.0,2834.5,3.52795]
[1739804758629,3.52735,2835.0,2834.8,3.0]
[1739804758930,0.7881,2835.3,2834.7,3.0]
[1739804759094,0.7881,2835.7,2834.9,0.15183381]
[1739804759431,3.52677,2835.5,2834.7,3.52759]
[1739804759643,3.52687,2835.4,2834.8,3.52751]
[1739804759854,3.52687,2835.4,2834.7,3.52764]
[1739804759855,3.52691,2835.4,2834.7,3.52764]
[1739804760067,0.55,2835.3,2834.8,0.15190204]
[1739804760342,3.52673,2835.5,2834.9,3.52734]
[1739804760643,3.52673,2835.5,2835.0,0.15176558]
[1739804760939,0.55,2835.3,2835.0,0.15176558]
[1739804761120,4.07703,2835.3,2835.0,0.15176558]
[1739804761461,3.52698,2835.3,2835.1,0.15169736]
[1739804761771,0.7932,2836.1,2834.8,3.0]
[1739804762045,3.52646,2835.7,2835.2,3.52701]
[1739804762264,0.7932,2836.1,2835.6,3.52651]
[1739804762469,3.5261,2836.0,2835.4,3.52676]
[1739804762608,4.31924,2836.1,2835.4,3.52676]
[1739804762807,4.31924,2836.1,2835.5,3.52667]
[1739804763008,4.31924,2836.1,2835.6,0.15135633]
[1739804763220,3.57020522,2836.0,2835.6,0.15135633]
[1739804763429,3.57038525,2835.9,2835.6,0.15135633]
[1739804763643,0.7932,2836.1,2835.6,0.15135633]
[1739804763803,0.7932,2836.1,2834.1,0.389]
[1739804763804,0.04408595,2835.9,2835.4,3.0]
[1739804764024,3.57030595,2835.9,2835.7,0.15135217]
[1739804764232,0.04408595,2835.9,2835.8,0.15128398]
[1739804764905,3.52526,2836.7,2835.3,0.7887]
[1739804764906,0.772,2836.5,2835.5,3.52664]
[1739804765107,4.07629,2835.9,2835.8,0.15128398]
[1739804765319,4.286528,2835.9,2835.8,0.15128398]
[1739804765535,3.52648,2835.7,2835.2,3.0]
[1739804765917,3.52648,2835.7,2835.1,3.52713]
[1739804766145,0.55,2836.0,2834.8,0.7887]
[1739804766146,3.52618,2836.0,2834.8,0.7887]
[1739804766350,3.5259,2836.2,2835.6,3.52652]
[1739804766548,3.5701137,2836.1,2835.7,3.0]
[1739804766723,3.52611,2836.0,2835.7,3.0]
[1739804766924,3.88288856,2836.2,2835.6,6.52649]
[1739804767127,3.88288856,2836.2,2834.8,4.49126617]
[1739804767348,3.57005503,2836.1,2835.6,3.52658]
[1739804767519,0.73250371,2836.1,2835.7,3.52646]
[1739804767720,4.06263856,2836.4,2835.7,3.52646]
[1739804767920,4.06265856,2836.4,2835.8,3.52628]
[1739804768156,4.06265856,2836.4,2835.9,3.52615]
[1739804768370,3.52617,2836.0,2835.4,3.52674]
[1739804768514,3.52648,2835.7,2835.1,3.52713]
[1739804768871,3.52629,2835.9,2835.3,3.52691]
[1739804769168,4.33627,2836.0,2835.4,3.52676]
[1739804769317,0.8101,2836.0,2834.3,3.0]
[1739804769514,3.52652,2835.7,2835.2,3.52707]
[1739804769966,3.5266,2835.6,2835.1,3.52715]
[1739804770276,3.52634,2835.8,2835.1,3.52714]
[1739804770455,3.52652,2835.7,2835.1,3.52714]
[1739804770825,3.52666,2835.6,2835.1,3.52714]
[1739804771033,3.52652,2835.7,2835.1,3.52714]
[1739804771324,4.07636,2835.8,2835.3,3.52696]
[1739804771533,4.07635,2835.8,2835.3,3.52696]
[1739804771867,0.8101,2836.0,2835.5,3.52664]
[1739804771868,4.33619,2836.0,2835.5,3.52664]
[1739804772239,3.52588,2836.2,2835.7,3.52644]
[1739804772560,3.5261,2836.0,2835.8,0.15127483]
[1739804772765,0.04408402,2835.9,2835.8,0.15127483]
[1739804773084,0.55,2836.1,2835.8,0.15127483]
[1739804773295,3.5261,2836.0,2835.6,3.52652]
[1739804773451,0.044084,2835.9,2835.3,3.0]
[1739804773798,0.55,2836.3,2835.2,0.777]
[1739804774065,3.52628,2835.9,2835.4,3.52673]
[1739804774381,3.52661,2835.6,2835.1,3.52716]
[1739804774631,0.04409067,2835.5,2835.1,3.52716]
[1739804774795,3.52709,2835.2,2834.8,0.8075]
[1739804775000,0.55,2835.7,2834.8,0.8075]
[1739804775176,3.52709,2835.2,2834.9,3.0]
[1739804775557,3.52686,2835.4,2834.9,3.0]
[1739804775764,7.0538,2835.4,2834.9,3.0]
[1739804775966,3.52686,2835.4,2834.9,3.0]
[1739804776307,3.52704,2835.3,2834.8,3.0]
[1739804776443,3.52696,2835.3,2834.8,6.52756]
[1739804776642,3.52686,2835.4,2834.9,3.52737]
[1739804776877,0.7721,2835.5,2834.6,3.0]
[1739804777075,0.7721,2835.5,2833.6,3.52902]
[1739804777076,3.52777,2834.7,2833.6,0.374]
[1739804777278,3.57198215,2834.6,2833.9,3.52859]
[1739804777476,4.07776,2834.7,2834.1,3.52841]
[1739804777687,3.5276,2834.8,2834.3,3.52819]
[1739804777865,3.52735,2835.0,2834.3,3.52819]
[1739804778204,3.52758,2834.8,2834.3,3.52812]
[1739804778362,0.04410287,2835.3,2833.9,0.69540645]
[1739804778543,3.52754,2834.9,2834.1,3.52835]
[1739804778745,0.04410431,2835.4,2834.0,3.52858]
[1739804778746,3.52777,2834.7,2834.0,3.52858]
[1739804779141,3.52795,2834.6,2834.0,3.52858]
[1739804779359,3.52795,2834.6,2833.9,0.69540645]
[1739804779360,0.81080743,2834.5,2833.9,3.0]
[1739804779668,3.52828,2834.3,2833.6,4.24457285]
[1739804779842,0.0441089,2834.2,2833.6,0.71557285]
[1739804780043,3.52854,2834.1,2833.6,0.71557285]
[1739804780352,3.52846,2834.1,2833.6,3.52907]
[1739804780540,3.52824,2834.3,2833.6,3.52907]
[1739804780758,3.5284,2834.2,2833.6,3.52907]
[1739804780972,3.52844,2834.2,2833.1,3.0]
[1739804781179,3.57258276,2834.1,2833.6,3.0]
[1739804781351,3.52867,2834.0,2833.6,3.0]
[1739804781680,3.5284,2834.2,2833.2,0.69239411]
[1739804781855,3.52888,2833.8,2833.2,0.69239411]
[1739804782057,3.52928,2833.5,2833.0,0.8186]
[1739804782270,8.13569212,2834.9,2832.8,0.71253418]
[1739804782469,3.5288,2833.9,2833.3,3.52937]
[1739804782980,0.59411849,2834.3,2833.2,3.0]
[1739804783168,3.52871,2833.9,2832.8,0.71253418]
[1739804783378,0.55,2833.6,2832.8,0.71253418]
[1739804783693,0.55,2833.6,2832.6,3.53025]
[1739804783694,3.52937,2833.4,2832.6,3.53025]
[1739804783906,3.52946,2833.3,2832.7,3.53009]
[1739804784053,3.52937,2833.4,2832.7,3.53009]
[1739804784249,0.59412508,2833.8,2832.2,3.53082]
[1739804784453,0.55,2833.5,2833.0,3.52978]
[1739804785010,0.8307,2834.0,2832.5,0.70772883]
[1739804785209,3.52929,2833.5,2832.9,3.52994]
[1739804785402,3.52929,2833.5,2832.5,3.70772883]
[1739804785611,0.55,2833.6,2833.0,3.5298]
[1739804785963,3.52898,2833.7,2833.1,3.52962]
[1739804786160,3.52882,2833.9,2833.3,3.52935]
[1739804786491,0.8307,2834.0,2833.4,0.15490403]
[1739804786654,0.8307,2834.0,2832.5,0.70772883]
[1739804786655,3.5294,2833.4,2832.8,3.52997]
[1739804786854,3.5294,2833.4,2832.9,6.52986]
[1739804787054,3.52946,2833.3,2832.9,3.0]
[1739804787268,3.5294,2833.4,2832.9,3.0]
[1739804787490,3.5294,2833.4,2832.9,6.52994]
[1739804787784,3.5294,2833.4,2832.9,3.0]
[1739804787990,3.5294,2833.4,2832.9,6.52993]
[1739804788160,3.5294,2833.4,2832.9,6.52994]
[1739804788679,0.55,2833.5,2832.9,3.0]
[1739804788880,3.52933,2833.4,2832.9,6.52993]
[1739804789063,3.52932,2833.4,2832.9,3.0]
[1739804789265,3.52958,2833.2,2832.9,3.0]
[1739804789788,0.55,2833.3,2832.1,0.7914]
[1739804790003,0.04413174,2833.9,2832.2,3.53082]
[1739804790292,4.07931,2833.5,2832.9,3.52988]
[1739804790463,4.07931,2833.5,2832.9,3.52987]
[1739804790667,3.52917,2833.6,2627.3,0.86157025]
[1739804790668,3.52932,2833.4,2832.8,6.53]
[1739804790907,3.52913,2833.6,2833.0,3.52981]
[1739804791063,0.87482252,2834.0,2832.8,6.53002]
[1739804791263,3.52919,2833.6,2832.8,6.53002]
[1739804791476,7.05854,2833.5,2832.9,3.52986]
[1739804791681,3.52924,2833.5,2832.9,3.52986]
[1739804791991,3.52988,2833.0,2832.5,3.53042]
[1739804792293,4.30585,2833.2,2832.7,3.53019]
[1739804792496,4.07946,2833.3,2832.8,3.53001]
[1739804792988,3.52926,2833.5,2832.9,3.52983]
[1739804793187,3.52926,2833.5,2833.0,3.5298]
[1739804793427,0.7529,2834.0,2832.8,8.31012474]
[1739804793694,3.52728,2835.1,2834.0,3.52855]
[1739804793695,3.52721,2835.1,2834.0,3.52855]
[1739804793991,3.52797,2834.5,2833.9,3.0]
[1739804794152,3.52777,2834.7,2833.9,3.0]
[1739804794356,3.52777,2834.7,2833.4,8.2765187]
[1739804794357,3.52813,2834.4,2833.4,0.72162396]
[1739804794553,3.52813,2834.4,2833.8,3.5287]
[1739804794859,3.52739,2835.0,2834.4,3.52806]
[1739804795063,3.52741,2835.0,2834.4,3.0]
[1739804795879,4.28004,2835.2,2834.5,3.52786]
[1739804796094,3.52735,2835.0,2834.5,3.52786]
[1739804796301,4.28004,2835.2,2834.6,3.52779]
[1739804796471,3.52688,2835.4,2834.7,3.52759]
[1739804796796,3.52697,2835.3,2834.7,3.52764]
[1739804796990,3.52719,2835.2,2834.6,3.0]
[1739804797191,3.52719,2835.2,2834.6,6.52779]
[1739804797695,1.3239,2835.6,2834.4,0.7545]
[1739804797897,3.52746,2834.9,2834.3,3.5282]
[1739804798061,3.52746,2834.9,2834.3,3.52811]
[1739804798263,3.52724,2835.1,2834.3,3.52811]
[1739804798264,3.52724,2835.1,2834.5,3.52795]
[1739804798495,3.5271,2835.2,2834.5,3.52795]
[1739804798697,0.55,2835.1,2834.4,3.0]
[1739804798997,0.7739,2835.6,2834.7,3.0]
[1739804798998,3.52685,2835.4,2834.7,3.0]
[1739804799294,3.52679,2835.5,2834.9,3.5274]
[1739804799876,3.52679,2835.5,2834.8,3.52757]
[1739804799877,0.55,2835.5,2834.8,3.52757]
[1739804800203,3.52696,2835.3,2834.7,6.5276]
[1739804800398,3.52684,2835.4,2834.8,3.52748]
[1739804800560,3.52634,2835.8,2835.2,3.52706]
[1739804800760,3.52719,2835.2,2834.4,0.7653]
[1739804800980,3.52754,2834.9,2834.1,3.52839]
[1739804801298,3.52736,2835.0,2834.4,3.528]
[1739804801472,0.7944,2835.1,2834.5,3.52793]
[1739804801674,3.879809,2835.2,2834.6,3.52771]
[1739804802000,0.352719,2835.2,2834.7,3.52767]
[1739804802198,3.52712,2835.2,2834.7,3.52767]
[1739804802413,3.52691,2835.4,2834.3,3.0]
[1739804802414,3.52748,2834.9,2834.8,0.15252796]
[1739804802563,4.07748,2834.9,2834.8,0.15252796]
[1739804802766,0.04409633,2835.4,2833.1,4.61723661]
[1739804802767,0.8119,2835.5,2834.0,0.7701]
[1739804803079,3.52797,2834.5,2834.1,3.0]
[1739804803279,3.52795,2834.6,2834.1,3.15299655]
[1739804803481,0.8119,2835.5,2834.1,0.15299655]
[1739804803678,3.52778,2834.7,2834.1,3.0]
[1739804803887,3.52803,2834.5,2834.2,0.15292829]
[1739804804203,3.5282,2834.3,2834.2,0.15292829]
[1739804804406,3.5282,2834.3,2833.7,3.52892]
[1739804804602,3.5282,2834.3,2834.2,0.15306101]
[1739804804904,4.07808,2834.4,2833.4,3.52924]
[1739804804905,3.52859,2834.0,2833.4,3.52924]
[1739804805101,3.52815,2834.4,2833.8,3.52872]
[1739804805301,3.5283,2834.3,2833.8,3.0]
[1739804805602,3.52815,2834.4,2833.8,3.0]
[1739804805937,1.3144,2834.7,2833.8,6.52882]
[1739804805938,3.52821,2834.3,2833.8,6.52882]
[1739804806202,3.52785,2834.6,2834.0,3.52856]
[1739804806364,3.52816,2834.4,2833.8,3.52882]
[1739804806569,3.52845,2834.2,2833.6,3.52902]
[1739804806769,3.52845,2834.2,2833.7,6.52887]
[1739804806988,3.5283,2834.3,2833.8,3.0]
[1739804807401,3.52834,2834.2,2833.8,3.0]
[1739804807608,3.52833,2834.2,2833.5,3.52915]
[1739804807807,3.52833,2834.2,2833.8,3.0]
[1739804808375,3.52819,2834.4,2833.8,3.0]
[1739804808598,3.52807,2834.5,2833.8,6.52881]
[1739804808803,3.52821,2834.3,2833.8,6.52881]
[1739804809273,3.52796,2834.5,2834.0,3.0]
[1739804809494,3.52796,2834.5,2834.0,6.52858]
[1739804809709,3.52796,2834.5,2834.0,3.0]
[1739804810090,3.52796,2834.5,2834.0,3.52857]
[1739804810297,3.52779,2834.7,2834.1,3.0]
[1739804810504,3.52784,2834.6,2834.1,6.52844]
[1739804811399,3.52783,2834.6,2834.0,6.5285]
[1739804811583,3.52796,2834.5,2834.0,6.5285]
[1739804812110,3.52796,2834.5,2834.0,3.0]
[1739804812324,3.52827,2834.3,2833.8,3.52879]
[1739804812521,3.52794,2834.6,2834.0,3.5285]
[1739804812712,3.52821,2834.3,2833.8,6.52878]
[1739804813029,3.52767,2834.8,2834.2,3.52826]
[1739804813323,3.52762,2834.8,2834.2,3.0]
[1739804813523,3.52762,2834.8,2834.2,6.52824]
[1739804813722,3.52762,2834.8,2834.3,3.52813]
[1739804813929,3.52754,2834.9,2834.3,3.52813]
[1739804814223,3.52761,2834.8,2834.2,6.52828]
[1739804814422,3.52761,2834.8,2834.3,3.52812]
[1739804814722,3.52686,2835.4,2834.4,3.52796]
[1739804814922,3.52739,2835.0,2834.5,3.52789]
[1739804815086,7.05483,2835.0,2834.4,6.52799]
[1739804815286,3.52739,2835.0,2834.5,3.52795]
[1739804815513,3.52717,2835.2,2834.6,3.52772]
[1739804815720,0.8291,2835.5,2834.1,3.71048195]
[1739804815889,3.5271,2835.2,2834.5,3.52788]
[1739804816210,3.52748,2834.9,2834.4,3.0]
[1739804816518,3.52728,2835.1,2834.5,3.68111667]
[1739804816890,3.5276,2834.8,2834.5,0.15317667]
[1739804817102,3.52753,2834.9,2834.4,3.0]
[1739804817298,3.52736,2835.0,2834.6,0.15310843]
[1739804817498,3.52736,2835.0,2834.5,3.52794]
[1739804817703,3.52736,2835.0,2834.7,0.15304019]
[1739804817906,3.52722,2835.1,2834.6,3.52783]
[1739804818121,3.52722,2835.1,2834.8,0.15297195]
[1739804818329,3.57150477,2835.0,2834.4,3.52798]
[1739804818500,3.5275,2834.9,2834.5,3.0]
[1739804818703,3.52792,2834.6,2834.0,4.34909]
[1739804818897,0.04409918,2834.5,2834.0,0.8206]
[1739804819223,3.52814,2834.4,2833.9,3.0]
[1739804819823,3.52783,2834.6,2833.5,0.71740796]
[1739804819992,3.52805,2834.5,2833.4,3.52926]
[1739804820187,3.52843,2834.2,2833.6,3.52904]
[1739804820419,3.52852,2834.1,2833.6,3.52904]
[1739804820725,3.52818,2834.4,2833.9,3.5286]
[1739804820948,3.52802,2834.5,2834.0,3.52857]
[1739804821131,3.52802,2834.5,2833.3,0.7847]
[1739804821132,3.52913,2833.6,2833.3,0.7847]
[1739804821313,0.8077,2834.0,2832.7,0.756]
[1739804821521,0.8077,2834.0,2832.7,4.2861]
[1739804821693,3.52929,2833.5,2832.9,3.52989]
[1739804822119,3.52929,2833.5,2833.0,3.52982]
[1739804822394,3.52958,2833.2,2832.7,4.28612]
[1739804822612,3.52945,2833.3,2832.8,3.53007]
[1739804823230,3.5293,2833.5,2832.8,3.0]
[1739804823428,3.52876,2833.9,2833.0,3.52977]
[1739804823626,0.8077,2834.0,2833.0,3.52977]
[1739804823627,3.52899,2833.7,2833.2,3.5295]
[1739804823828,3.5293,2833.5,2832.9,3.0]
[1739804824048,0.04411823,2833.4,2832.7,3.0]
[1739804824351,3.52925,2833.5,2832.8,3.53006]
[1739804824630,0.55,2833.9,2832.8,3.53006]
[1739804824631,3.52889,2833.8,2832.8,3.0]
[1739804824828,3.52899,2833.7,2833.2,3.0]
[1739804825222,7.05803,2833.7,2833.2,3.0]
[1739804825530,3.52922,2833.5,2833.0,3.0]
[1739804825847,3.52898,2833.7,2832.7,3.5302]
[1739804826008,3.52878,2833.9,2832.8,3.0]
[1739804826208,0.8077,2834.0,2833.1,3.0]
[1739804826412,0.8077,2834.0,2832.8,3.0]
[1739804826598,3.52887,2833.8,2833.4,3.0]
[1739804826798,3.52887,2833.8,2833.3,3.0]
[1739804827037,3.52916,2833.6,2833.2,0.8181]
[1739804827248,3.52889,2833.8,2833.0,3.52981]
[1739804827419,3.52889,2833.8,2833.3,3.52944]
[1739804827608,3.52909,2833.6,2833.1,3.52968]
[1739804827805,3.52889,2833.8,2832.8,3.8181]
[1739804828146,3.52896,2833.7,2833.1,3.5296]
[1739804828305,3.52896,2833.7,2833.2,3.52957]
[1739804828512,3.52896,2833.7,2833.1,3.5296]
[1739804828827,3.52908,2833.6,2833.1,3.5296]
[1739804829031,3.52887,2833.8,2833.3,3.52945]
[1739804829343,3.52861,2834.0,2833.4,3.52931]
[1739804829543,0.04411096,2834.3,2833.5,3.0]
[1739804829855,3.52899,2833.7,2833.3,3.0]
[1739804830147,3.52901,2833.7,2833.0,3.52975]
[1739804830325,3.52888,2833.8,2833.3,3.52933]
[1739804830519,3.52876,2833.9,2833.3,3.52933]
[1739804830720,3.5289,2833.8,2833.3,3.52933]
[1739804830985,3.5289,2833.8,2833.4,3.0]
[1739804831170,3.52847,2834.1,2833.4,3.0]
[1739804831373,3.52861,2834.0,2833.5,3.6837745]
[1739804831712,3.52847,2834.1,2833.6,3.52907]
[1739804831911,3.52829,2834.3,2833.7,3.6834238]
[1739804832210,0.7594,2834.4,2833.7,3.6833438]
[1739804832416,3.52765,2834.8,2834.3,3.52813]
[1739804832638,3.52771,2834.7,2834.2,3.0]
[1739804832843,3.52786,2834.6,2834.4,0.15398675]
[1739804833009,3.52777,2834.7,2834.3,0.15405501]
[1739804833214,3.52733,2835.1,2834.5,0.1539185]
[1739804833414,3.961163,2835.1,2834.4,3.68203675]
[1739804833628,3.52734,2835.0,2834.6,0.15385026]
[1739804833828,0.811,2835.2,2834.5,3.6817885]
[1739804834041,3.52724,2835.1,2834.7,0.15342486]
[1739804834251,3.5274,2835.0,2834.6,0.1534931]
[1739804834424,3.5274,2835.0,2834.8,0.15335663]
[1739804834629,7.05481,2835.0,2834.7,0.15342486]
[1739804834840,0.811,2835.2,2834.4,6.52807]
[1739804834841,3.52749,2834.9,2834.4,6.52807]
[1739804835035,3.52749,2834.9,2834.8,0.15335663]
[1739804835268,0.811,2835.2,2834.3,0.7877]
[1739804835444,0.811,2835.2,2834.8,0.15335663]
[1739804835445,3.52721,2835.1,2834.8,0.15335663]
[1739804835618,3.52791,2834.6,2834.0,3.52849]
[1739804835817,3.52808,2834.4,2833.9,3.7676]
[1739804836016,3.52808,2834.4,2834.1,0.15373368]
[1739804836218,3.52808,2834.4,2833.9,3.7676]
[1739804836219,3.52808,2834.4,2834.0,0.15380195]
[1739804836436,3.52808,2834.4,2834.2,0.15366541]
[1739804836639,3.52808,2834.4,2834.1,0.15373368]
[1739804836842,7.05628,2834.4,2834.3,0.15359715]
[1739804837037,3.5282,2834.3,2834.2,0.15325784]
[1739804837215,3.52853,2834.1,2833.6,0.71467691]
[1739804837416,3.52874,2833.9,2833.5,3.7676]
[1739804837620,3.52874,2833.9,2833.2,3.86953]
[1739804837820,3.52884,2833.8,2833.3,3.52938]
[1739804838249,3.52884,2833.8,2833.3,4.2495691]
[1739804838492,3.52858,2834.0,2833.4,3.52931]
[1739804838760,3.52872,2833.9,2833.4,3.52931]
[1739804839053,3.52885,2833.8,2833.3,3.7201891]
[1739804839252,3.52874,2833.9,2833.3,3.7201891]
[1739804839556,3.52874,2833.9,2833.3,7.2495191]
[1739804839957,0.705628,2834.3,2833.1,0.7676]
[1739804839958,3.52905,2833.7,2833.1,0.7676]
[1739804840157,0.04411261,2834.1,2832.9,3.52991]
[1739804840349,3.52934,2833.4,2832.9,3.52991]
[1739804840546,3.52934,2833.4,2833.0,3.0]
[1739804841057,3.52908,2833.6,2833.0,6.52978]
[1739804841648,3.5285,2834.1,2833.5,3.52909]
[1739804841851,3.52884,2833.8,2833.2,3.0]
[1739804842157,3.52936,2833.4,2832.8,4.23766999]
[1739804842463,3.52936,2833.4,2832.9,3.52993]
[1739804842820,3.52865,2834.0,2833.3,3.0]
[1739804843055,3.52905,2833.7,2833.1,3.52963]
[1739804843274,3.52905,2833.7,2833.2,3.0]
[1739804843929,3.52905,2833.7,2833.2,6.52956]
[1739804845059,0.55,2834.3,2833.2,6.52956]
[1739804845362,3.52896,2833.7,2833.2,6.52956]
[1739804845538,3.52889,2833.8,2833.1,3.0]
[1739804845739,3.52902,2833.7,2833.0,0.7638]
[1739804845925,3.52902,2833.7,2833.3,3.0]
[1739804846567,3.52902,2833.7,2833.4,0.15426658]
[1739804846765,3.52908,2833.6,2833.4,0.15426658]
[1739804847062,3.52924,2833.5,2833.1,3.0]
[1739804847225,0.7755,2834.0,2833.5,0.15419828]
[1739804847433,3.52955,2833.3,2832.7,3.53013]
[1739804847780,3.52958,2833.2,2832.8,0.1550107]
[1739804848083,3.52981,2833.1,2832.6,4.35405]
[1739804848245,0.55,2833.8,2832.9,0.15494237]
[1739804848448,3.5297,2833.1,2832.7,3.0]
[1739804848777,3.5297,2833.1,2832.8,0.1550107]
[1739804848977,3.52948,2833.3,2832.5,0.69107889]
[1739804849183,3.52948,2833.3,2832.9,3.68487237]
[1739804849387,4.32391,2833.7,2833.0,0.01785011]
[1739804849528,3.52927,2833.5,2833.0,3.15487405]
[1739804849745,3.52927,2833.5,2833.0,6.68469405]
[1739804849950,4.32391,2833.7,2833.0,6.68469405]
[1739804850183,4.32391,2833.7,2833.2,3.52956]
[1739804850381,3.52875,2833.9,2833.3,3.52936]
[1739804850544,3.52875,2833.9,2833.4,3.0]
[1739804850753,3.52893,2833.8,2833.4,0.15472449]
[1739804850983,3.52883,2833.8,2833.4,0.15472449]
[1739804851145,3.52903,2833.7,2833.4,0.15472449]
[1739804851350,3.52903,2833.7,2833.3,3.0]
[1739804851547,3.52896,2833.7,2833.5,0.15465619]
[1739804851762,3.52877,2833.9,2833.4,3.52932]
[1739804851975,3.52877,2833.9,2833.6,0.1545879]
[1739804852176,0.7949,2834.2,2833.5,3.52914]
[1739804852383,0.7645,2835.1,2833.7,3.15444173]
[1739804852548,0.7645,2835.1,2834.1,4.0230293]
[1739804852746,0.7645,2835.1,2834.6,3.52778]
[1739804852978,4.3918509,2835.2,2834.6,3.52778]
[1739804853181,4.3918509,2835.2,2834.7,0.15366293]
[1739804853509,3.52725,2835.1,2834.7,0.15366293]
[1739804853683,3.52736,2835.0,2834.7,0.15366293]
[1739804853983,3.52746,2834.9,2834.8,0.15359469]
[1739804854178,3.52736,2835.0,2834.0,0.8158]
[1739804854179,0.04409841,2835.0,2834.0,0.8158]
[1739804854388,3.52778,2834.7,2834.2,3.0]
[1739804854581,3.52778,2834.7,2834.1,3.0]
[1739804854884,3.52808,2834.4,2833.8,3.52879]
[1739804855084,3.52821,2834.3,2833.8,3.52879]
[1739804855385,3.52797,2834.5,2833.9,3.0]
[1739804855684,3.52808,2834.4,2833.9,3.0]
[1739804856057,4.28191,2834.7,2834.1,3.52845]
[1739804856249,3.52768,2834.8,2834.2,6.52832]
[1739804856456,3.52796,2834.5,2833.9,3.52864]
[1739804856649,3.52796,2834.5,2833.8,3.0]
[1739804856886,3.52834,2834.2,2833.8,3.0]
[1739804857187,3.52826,2834.3,2833.8,3.52881]
[1739804857684,3.880856,2834.5,2833.8,6.52881]
[1739804857891,3.52814,2834.4,2833.9,3.0]
[1739804858058,3.52806,2834.5,2833.9,3.5286]
[1739804858259,0.7542,2835.1,2834.2,3.0]
[1739804858478,7.05562,2834.7,2834.2,3.0]
[1739804858693,0.7542,2835.1,2833.9,3.52864]
[1739804858887,3.52795,2834.6,2834.1,3.0]
[1739804859188,3.52815,2834.4,2833.9,3.0]
[1739804859489,3.52765,2834.8,2834.2,3.52833]
[1739804860088,0.7542,2835.1,2834.3,3.0]
[1739804860293,3.5276,2834.8,2834.3,3.0]
[1739804860858,3.52746,2834.9,2833.8,3.0]
[1739804861080,3.52711,2835.2,2834.4,0.7701]
[1739804861252,3.52704,2835.3,2834.7,3.5276]
[1739804861453,3.52696,2835.3,2834.6,3.52783]
[1739804861653,3.52746,2834.9,2834.8,0.15300859]
[1739804861887,3.52746,2834.9,2834.7,0.15307683]
[1739804862094,3.52761,2834.8,2834.4,3.7701]
[1739804862292,3.52746,2834.9,2834.8,0.15300859]
[1739804862597,3.52801,2834.5,2833.9,3.8062]
[1739804862895,3.52856,2834.1,2833.6,3.52902]
[1739804863408,3.52854,2834.1,2833.5,3.8062]
[1739804863615,3.52878,2833.9,2833.5,0.8062]
[1739804863956,3.52891,2833.8,2833.5,0.8062]
[1739804864370,3.52908,2833.6,2833.1,4.68599]